fUST/lending_fUST_20250824
["ID","MTS","AMOUNT","RATE_DAILY","PERIOD"]
[381049888,1755973840840,-586.13444669,0.00036421,5]
[381049890,1755973840850,-1000.0,0.00036421,5]
[381049892,1755973840859,-1000.0,0.00036421,5]
[381049894,1755973840868,-1000.0,0.00036421,5]
[381049896,1755973840877,-1000.0,0.00036421,5]
[381049898,1755973840887,-160.0,0.00036713,2]
[381049900,1755973840896,-160.0,0.00036713,2]
[381049902,1755973840906,-232.37252479,0.00036723,2]
[381049904,1755973840917,-1500.0,0.00036868,5]
[381049906,1755973840927,-151.0,0.00036932,7]
[381049908,1755973840937,-500.0,0.00036932,7]
[381049910,1755973840948,-151.0,0.00036932,7]
[381049912,1755973840957,-151.0,0.00036932,7]
[381049914,1755973840967,-1036.3278538,0.00036968,5]
[381049916,1755973840976,-500.0,0.00036968,5]
[381049918,1755973840985,-800.0,0.00036986,7]
[381049920,1755973840994,-199.0,0.0003716,120]
[381049922,1755973841004,-151.0,0.00037206,7]
[381049924,1755973841014,-500.0,0.00037206,7]
[381049926,1755973841023,-151.0,0.00037206,7]
[381049928,1755973841032,-408.0,0.00037208,2]
[381049930,1755973841041,-1171.52,0.000374,14]
[381049933,1755973841051,-577.3,0.000374,7]
[381049934,1755973841060,-2000.0,0.00037416,5]
[381049937,1755973841069,-151.0,0.0003748,7]
[381049939,1755973841079,-500.0,0.0003748,7]
[381049941,1755973841088,-151.0,0.0003748,7]
[381049943,1755973841097,-15863.53,0.000375,14]
[381049945,1755973841106,-500.0,0.00037714,7]
[381049947,1755973841115,-500.0,0.00037754,7]
[381049949,1755973841124,-255.0,0.00037754,7]
[381049951,1755973841134,-155.0,0.000378,120]
[381049953,1755973841143,-800.0,0.00037808,7]
[381049955,1755973841152,-724.96,0.00037939,120]
[381049957,1755973841162,-500.0,0.00038,5]
[381049959,1755973841172,-2006.19374963,0.00038,30]
[381049961,1755973841182,-500.0,0.00038028,7]
[381049972,1755973841275,-395.54590476,0.00038029,30]
[381049974,1755973841285,-534.16274326,0.00038281,2]
[381049976,1755973841298,-1819.913502,0.00038281,2]
[381049978,1755973841307,-500.0,0.00038302,7]
[381049980,1755973841316,-600.0,0.000384,2]
[381049982,1755973841325,-716.004299,0.00038494,2]
[381049984,1755973841334,-500.0,0.00038576,7]
[381049986,1755973841344,-800.0,0.0003863,7]
[381049988,1755973841353,-600.0,0.000388,2]
[381049990,1755973841362,-500.0,0.00038822,7]
[381049992,1755973841371,-500.0,0.0003885,7]
[381049994,1755973841380,-76430.54391878,0.000389,60]
[381050047,1755973841876,-322.48686438,0.00027497,2]
[381050049,1755973841888,-217.91764998,0.00027497,2]
[381050051,1755973841897,-169.43707574,0.00027497,2]
[381050053,1755973841906,-69.04527428,0.00027497,2]
[381050055,1755973841919,-225.00585362,0.00027497,2]
[381050057,1755973841929,-347.31914638,0.00027497,2]
[381050075,1755973842117,-0.0372614,0.00027497,2]
[381050077,1755973842128,-152.64359222,0.00027497,2]
[381050079,1755973842138,-114.35640778,0.00027497,2]
[381050081,1755973842149,-53.02134123,0.00027497,2]
[381050083,1755973842158,-242.67186822,0.00027497,2]
[381050085,1755973842167,-144.53378318,0.00027497,2]
[381050087,1755973842179,-92.59821682,0.00027497,2]
[381050089,1755973842189,-57471.87118208,0.000389,60]
[381050198,1755973843463,-5000.0,0.00024953,3]
[381050200,1755973843473,-151.0,0.000388,2]
[381050202,1755973843482,-2672.44557217,0.000389,60]
[381050498,1755973847373,-126489.27819339,0.000389,60]
[381050499,1755973847508,-915.24,0.000389,60]
[381050507,1755973949296,-229.16750567,0.0002249,2]
[381050508,1755973952912,-87.26921813,0.0002249,2]
[381050509,1755973952935,-70.99483027,0.00024216,2]
[381050510,1755973954566,-173.43158676,0.00024216,2]
[381050511,1755973956596,-72.01030677,0.00024216,2]
[381050512,1755973956619,-120.82902491,0.00024703,3]
[381050513,1755973959130,-376.96693533,0.00024703,3]
[381050514,1755973961457,-226.55078086,0.00024703,3]
[381050515,1755973963467,-481.2842672,0.00024703,3]
[381050516,1755973965435,-200.0,0.00024703,3]
[381050517,1755973967480,-318.09231369,0.00024703,3]
[381050518,1755973970153,-165.89224048,0.00024703,3]
[381050519,1755973971497,-165.0409466,0.00024703,3]
[381050520,1755973974073,-216.1680267,0.00024703,3]
[381050521,1755973976096,-205.36770932,0.00024703,3]
[381050522,1755973977723,-160.0,0.00024703,3]
[381050523,1755973980427,-158.57424118,0.00024703,3]
[381050524,1755973982516,-390.76187952,0.00024703,3]
[381050525,1755973984318,-167.0124152,0.00024703,3]
[381050526,1755973987316,-283.6514641,0.00024703,3]
[381050527,1755973989381,-273.55022294,0.00024703,3]
[381050528,1755973992009,-247.54462276,0.00024703,3]
[381050529,1755973993551,-205.30750649,0.00024703,3]
[381050530,1755973997260,-459.58976445,0.00024703,3]
[381050531,1755974000382,-177.81563827,0.00024703,3]
[381050532,1755974002675,369.5443038,0.00024456,3]
[381050533,1755974004820,-509.37384048,0.00024456,3]
[381050534,1755974007315,-173.48406566,0.00024456,3]
[381050535,1755974008891,-172.74858224,0.00024456,3]
[381050536,1755974011601,-211.20282395,0.00024456,3]
[381050537,1755974013123,-151.0,0.00024456,3]
[381050538,1755974015131,-217.00623575,0.00024456,3]
[381050539,1755974017184,-172.62340554,0.00024456,3]
[381050540,1755974019297,-227.69976139,0.00024456,3]
[381050541,1755974020898,-195.22222102,0.00024456,3]
[381050542,1755974022414,-267.9224488,0.00024456,3]
[381050543,1755974026568,-385.50974809,0.00024456,3]
[381050544,1755974030781,-233.39067577,0.00024456,3]
[381050545,1755974033914,-187.41557551,0.00024456,3]
[381050546,1755974035364,-555.25941433,0.00024456,3]
[381050547,1755974035691,164.628817,0.00013699,2]
[381050548,1755974038420,-187.41557551,0.00024456,3]
[381050549,1755974039605,5000.0,0.00024,3]
[381050550,1755974039874,-165.02603602,0.00024456,3]
[381050551,1755974040786,165.0,8e-07,2]
[381050552,1755974042687,-375.710399,0.00024456,3]
[381050553,1755974043998,-160.99966894,0.00024456,3]
[381050554,1755974045412,-81.4452182,0.00024456,3]
[381050555,1755974047898,545.50200088,0.00024,3]
[381050556,1755974047924,4454.49799912,0.00024,3]
[381050557,1755974055976,3821.35942007,0.00024803,2]
[381050558,1755974064384,5000.0,0.00024803,2]
[381050559,1755974080121,5000.0,0.00024903,2]
[381050560,1755974092763,826.581287,0.00024448,2]
[381050561,1755974092897,-160.0,0.00025199,2]
[381050562,1755974092919,-221.9223751,0.00025204,2]
[381050563,1755974092959,165.664009,0.00024449,2]
[381050564,1755974095999,5000.0,0.00025003,2]
[381050565,1755974096027,-230.245484,0.00025163,2]
[381050566,1755974096048,-66.20352164,0.00025165,2]
[381050567,1755974103115,4007.764704,0.00019599,2]
[381050568,1755974103137,5000.01,0.00019599,2]
[381050569,1755974103158,1178.65057993,0.00019599,2]
[381050570,1755974103294,10000.01,0.00019599,2]
[381050571,1755974103323,37928.73519361,0.00019599,2]
[381050572,1755974103355,160.72342722,0.00019573,2]
[381050578,1755974119258,-155.93815139,0.0002249,2]
[381050579,1755974122138,-168.75489865,0.0002249,2]
[381050581,1755974123681,9570.73175979,0.0002249,5]
[381050584,1755974125223,628.37978551,0.000196,2]
[381050587,1755974125996,-39.58640074,0.0002249,2]
[381050588,1755974126022,-224.75293159,0.00024216,2]
[381050589,1755974127253,-139.52651919,0.00024216,2]
[381050590,1755974127294,-135.62708639,0.00024913,2]
[381050591,1755974129964,-225.63755332,0.00024913,2]
[381050592,1755974135692,-348.33026223,0.00024913,2]
[381050593,1755974138812,-309.44543974,0.00024913,2]
[381050596,1755974141507,-184.55775529,0.00024913,2]
[381050597,1755974144140,-154.45464168,0.00024913,2]
[381050598,1755974150782,-184.54139018,0.00024911,3]
[381050599,1755974153455,-35.45860982,0.00024911,3]
[381050600,1755974153477,-216.55947949,0.00024913,2]
[381050601,1755974156077,-372.18295539,0.00024913,2]
[381050602,1755974158981,-240.94721516,0.00024913,2]
[381050603,1755974210082,-221.07467357,0.00024587,2]
[381050604,1755974212363,-7.34003273,0.00024587,2]
[381050605,1755974212386,-233.39067577,0.00024804,2]
[381050606,1755974284095,-209.89621954,0.0002249,2]
[381050607,1755974286679,-117.8747382,0.0002249,2]
[381050608,1755974286703,-276.5346123,0.00024216,2]
[381050609,1755974288156,-51.23634544,0.00024216,2]
[381050610,1755974290482,-164.57808423,0.00024813,2]
[381050611,1755974290513,-172.2287248,0.00024813,2]
[381050612,1755974298746,5000.0,0.00024895,2]
[381050613,1755974310493,-561.48392158,0.00024904,2]
[381050614,1755974314530,5000.0,0.00024895,2]
[381050615,1755974329726,3877.04215684,0.00024995,2]
[381050616,1755974329765,1122.95784316,0.00024995,2]
[381050617,1755974330483,-161.88364495,0.00024995,5]
[381050618,1755974330528,-182.3659805,0.00024995,5]
[381050619,1755974330572,-184.4995034,0.00024995,5]
[381050620,1755974337901,-298.77080196,0.00025165,2]
[381050621,1755974340284,209.89621954,0.00024995,2]
[381050622,1755974345028,5000.0,0.00025195,2]
[381050623,1755974360161,5000.0,0.00025295,2]
[381050624,1755974368059,161.88364495,0.00024995,5]
[381050625,1755974370590,-200.0,0.00025373,2]
[381050626,1755974372506,182.3659805,0.00024995,5]
[381050627,1755974376031,5000.0,0.00025395,2]
[381050628,1755974379409,4135.41412228,0.00024529,2]
[381050629,1755974392067,5000.0,0.00025395,2]
[381050630,1755974407164,5000.0,0.00025495,2]
[381050636,1755974422919,5000.0,0.00025595,2]
[381050637,1755974427652,161.88364495,0.00024995,5]
[381050638,1755974438813,4838.12635505,0.00025595,2]
[381050639,1755974441247,-161.87364495,0.00025595,2]
[381050640,1755974446595,234.68371323,0.00025595,2]
[381050641,1755974452260,433.45211277,0.000199,2]
[381050642,1755974452342,433.45211276,0.0002508,2]
[381050643,1755974452430,433.45211276,0.00021627,2]
[381050644,1755974453162,433.45211276,0.00023353,2]
[381050645,1755974454700,5000.0,0.00025695,2]
[381050646,1755974461284,-161.88364494,0.00025768,5]
[381050647,1755974470448,5000.0,0.00025795,2]
[381050648,1755974485650,5000.0,0.00025995,2]
[381050649,1755974501662,5000.0,0.00025995,2]
[381050650,1755974506614,203.51170235,0.00025668,2]
[381050651,1755974509964,-172.22872478,0.00026153,2]
[381050652,1755974513323,-599.3556669,0.00026198,2]
[381050653,1755974513350,-232.37252479,0.00026235,2]
[381050654,1755974513379,-160.0,0.00026235,2]
[381050655,1755974513409,-217.0334113,0.00026235,2]
[381050656,1755974513436,-160.0,0.00026253,2]
[381050657,1755974513477,-276.5174934,0.00026288,2]
[381050658,1755974516959,5000.0,0.00026295,2]
[381050659,1755974532163,5000.0,0.00026395,2]
[381050660,1755974547910,5000.0,0.00026495,2]
[381050661,1755974557395,-3100.48462597,0.00026499,2]
[381050662,1755974557423,-300.0,0.00026572,2]
[381050663,1755974557452,-500.0,0.00026573,2]
[381050664,1755974557481,-405.165,0.00026573,13]
[381050665,1755974557510,-188.71074806,0.00026573,2]
[381050666,1755974560274,-1011.28925194,0.00026573,2]
[381050667,1755974560303,-300.0,0.00026573,2]
[381050668,1755974563213,5000.0,0.00026495,2]
[381050669,1755974578240,0.01,0.00026495,2]
[381050670,1755974581521,-4999.99,0.00026495,2]
[381050671,1755974593532,-500.0,0.00026573,2]
[381050672,1755974593563,-300.0,0.00026573,2]
[381050673,1755974594602,5000.0,0.00026495,2]
[381050674,1755974604460,-160.0184647,0.00026599,2]
[381050675,1755974609799,5000.0,0.00026695,2]
[381050676,1755974617678,1802.73699337,0.00026695,2]
[381050677,1755974619077,375.65849788,0.000199,2]
[381050678,1755974619290,375.65849772,0.00023353,2]
[381050679,1755974619633,375.65849772,0.0002508,2]
[381050680,1755974619799,375.65849772,0.00021627,2]
[381050681,1755974621485,-151.48063496,0.00026699,2]
[381050682,1755974621514,-172.22872478,0.00026706,2]
[381050683,1755974625853,5000.0,0.00026795,2]
[381050684,1755974638155,-375.65849772,0.00026806,6]
[381050685,1755974638189,-1200.0,0.00026848,2]
[381050686,1755974638217,-500.0,0.00026873,2]
[381050687,1755974638246,-500.0,0.00026873,2]
[381050688,1755974638277,-500.0,0.00026873,2]
[381050689,1755974638305,-500.0,0.00026873,2]
[381050690,1755974638339,-500.0,0.00026873,2]
[381050691,1755974638367,-500.0,0.00026873,2]
[381050692,1755974638396,-348.69300456,0.00026873,2]
[381050693,1755974642174,4352.59128052,0.00026795,2]
[381050694,1755974643925,500.0,0.00026573,2]
[381050695,1755974644109,500.0,0.00026573,2]
[381050696,1755974647946,157.0,8e-07,2]
[381050697,1755974648800,157.0,8e-07,2]
[381050698,1755974650388,60.60208619,8e-07,2]
[381050699,1755974650412,96.39791381,8e-07,2]
[381050700,1755974652047,157.0,8e-07,2]
[381050701,1755974653135,157.0,8e-07,2]
[381050702,1755974654198,157.0,8e-07,2]
[381050703,1755974655306,157.0,8e-07,2]
[381050704,1755974656431,157.0,8e-07,2]
[381050705,1755974671533,-647.40871948,0.00026795,2]
[381050706,1755974674639,-300.0,0.00026872,2]
[381050707,1755974674668,-151.30699544,0.00026873,2]
[381050708,1755974674696,-500.0,0.00026873,2]
[381050709,1755974674723,-500.0,0.00026873,2]
[381050710,1755974674750,-500.0,0.00026873,2]
[381050711,1755974674778,-500.0,0.00026873,2]
[381050712,1755974674804,-500.0,0.00026873,2]
[381050713,1755974674833,-500.0,0.00026873,2]
[381050714,1755974674861,-500.0,0.00026873,2]
[381050715,1755974674891,-500.0,0.00026873,2]
[381050716,1755974674920,-500.0,0.00026873,2]
[381050717,1755974678690,-500.0,0.00026873,2]
[381050718,1755974678720,-500.0,0.00026873,2]
[381050719,1755974678750,-500.0,0.00026873,2]
[381050720,1755974678780,-500.0,0.00026873,2]
[381050721,1755974678810,-501.27875092,0.00026873,2]
[381050722,1755974678839,-500.0,0.00026873,2]
[381050723,1755974678870,-500.0,0.00026873,2]
[381050724,1755974678899,-622.80010316,0.00026873,2]
[381050725,1755974678928,-500.0,0.00026873,2]
[381050726,1755974686466,5000.0,0.00026795,2]
[381050727,1755974701664,3705.19256104,0.00026795,2]
[381050728,1755974711644,-1294.80743896,0.00026795,2]
[381050729,1755974714158,7410.39512208,0.00025843,2]
[381050730,1755974714180,228.56834001,0.00025843,2]
[381050731,1755974716829,5000.0,0.00026795,2]
[381050732,1755974720887,-1200.0,0.00026872,2]
[381050733,1755974720915,-300.0,0.00026872,2]
[381050734,1755974720945,-300.0,0.00026872,2]
[381050735,1755974720973,-300.0,0.00026872,2]
[381050736,1755974721002,-300.0,0.00026872,2]
[381050737,1755974721031,-300.0,0.00026872,2]
[381050738,1755974721062,-500.0,0.00026873,2]
[381050739,1755974721092,-500.0,0.00026873,2]
[381050740,1755974721123,-501.66314512,0.00026873,2]
[381050741,1755974721153,-500.0,0.00026873,2]
[381050742,1755974721182,-96.68370976,0.00026873,2]
[381050743,1755974721824,-403.31629024,0.00026873,2]
[381050744,1755974731960,4771.44165999,0.00026795,2]
[381050745,1755974734798,341.59039514,0.00026495,7]
[381050746,1755974739022,-228.55834001,0.00026795,2]
[381050747,1755974748459,5000.0,0.00026795,2]
[381050748,1755974755347,358.00215,0.0002617,2]
[381050749,1755974764324,4184.89116998,0.00026795,2]
[381050750,1755974764349,815.10883002,0.00026795,2]
[381050751,1755974777791,-232.37252479,0.00026872,2]
[381050752,1755974777821,-500.0,0.00026873,2]
[381050753,1755974777851,-500.0,0.00026873,2]
[381050754,1755974777880,-500.0,0.00026873,2]
[381050755,1755974781275,5000.0,0.00026795,2]
[381050756,1755974785525,313.0487481,0.00021627,2]
[381050757,1755974785800,313.0487481,0.0002508,2]
[381050758,1755974785836,313.0487481,0.000199,2]
[381050759,1755974785958,313.0487481,0.00023353,2]
[381050760,1755974788878,-313.0487481,0.00026806,6]
[381050761,1755974797221,2932.70617758,0.00026795,2]
[381050762,1755974801616,-2067.29382242,0.00026795,2]
[381050763,1755974809363,-547.84377002,0.00026799,2]
[381050764,1755974809390,-855.0,0.00026872,2]
[381050765,1755974812459,5000.0,0.00026795,2]
[381050766,1755974827563,865.42235516,0.00025873,2]
[381050767,1755974827585,1218.96344214,0.00025873,2]
[381050768,1755974827792,5000.0,0.00026795,2]
[381050769,1755974835879,203.51170235,0.00026695,2]
[381050770,1755974839469,-500.0,0.00026873,2]
[381050771,1755974839500,-500.0,0.00026873,2]
[381050772,1755974839530,-562.97348677,0.00026873,2]
[381050773,1755974839560,-500.0,0.00026873,2]
[381050775,1755974843172,3577.53485551,0.00026795,2]
[381050776,1755974851805,-1422.46514449,0.00026795,2]
[381050777,1755974859002,5000.0,0.00026795,2]
[381050778,1755974875934,5000.0,0.00026895,2]
[381050779,1755974881773,-251.20721443,0.00026899,2]
[381050780,1755974881802,-188.26341749,0.00026899,2]
[381050781,1755974881833,-263.48,0.00026899,2]
[381050782,1755974881861,-600.4494604,0.00026899,2]
[381050783,1755974881890,-185.97527668,0.00026899,2]
[381050784,1755974881922,-500.0,0.00026899,2]
[381050785,1755974881951,-382.279031,0.00026899,2]
[381050786,1755974881982,-500.0,0.00026899,2]
[381050787,1755974882012,-500.0,0.00026899,2]
[381050788,1755974882041,-500.0,0.00026899,2]
[381050789,1755974882070,-500.0,0.00026899,2]
[381050790,1755974882100,-303.29073066,0.00026899,2]
[381050791,1755974882129,-150.11973868,0.00026899,2]
[381050792,1755974883455,500.0,0.00026873,2]
[381050793,1755974887074,500.0,0.00026873,2]
[381050794,1755974892556,4000.01,0.00026895,2]
[381050795,1755974900139,2155.07971102,0.0002608,2]
[381050796,1755974900161,10000.01,0.0002608,2]
[381050797,1755974900184,459.23281258,0.0002608,2]
[381050798,1755974954315,260.87395675,0.000199,2]
[381050799,1755974954533,260.87395675,0.00023353,2]
[381050800,1755974954778,260.87395675,0.00021627,2]
[381050801,1755974955551,260.87395675,0.0002508,2]
[381050802,1755974959776,-260.87395675,0.00026806,6]
[381050803,1755974959806,-999.99,0.00026895,2]
[381050804,1755974964448,5000.0,0.00026895,2]
[381050805,1755974976950,197.322732,0.00026347,2]
[381050806,1755974980408,2280.9593545,0.00026895,2]
[381050807,1755974982081,8956.514173,0.00026,7]
[381050808,1755974982102,10000.01,0.00026,7]
[381050809,1755974982125,8414.18679228,0.00026,7]
[381050810,1755974982146,3303.61208619,0.00026,7]
[381050811,1755974982166,0.03,0.00026,7]
[381050812,1755974982187,5000.01,0.00026,7]
[381050813,1755974982208,831.97416901,0.00026,7]
[381050814,1755975005675,1241.01755926,0.00021241,2]
[381050854,1755975032623,-183.09580328,0.00026873,2]
[381050856,1755975032633,-2719.0406455,0.00026895,2]
[381050858,1755975032642,-300.0,0.00026899,2]
[381050860,1755975032651,-300.0,0.00026899,2]
[381050862,1755975032660,-196.0,0.00026899,2]
[381050864,1755975032670,-300.0,0.00026899,2]
[381050866,1755975032679,-151.0,0.00026899,2]
[381050868,1755975032688,-151.0,0.00026899,2]
[381050869,1755975032699,-151.0,0.00026899,2]
[381050871,1755975032708,-292.5185859,0.00026899,2]
[381050873,1755975032718,-4906.95102385,0.000269,2]
[381050876,1755975032737,-3249.11693317,0.000269,2]
[381050878,1755975032748,-10209.09229106,0.000269,2]
[381050880,1755975032760,-956.23404994,0.000269,2]
[381050883,1755975032781,-16754.51570198,0.000269,2]
[381050885,1755975032790,-1000.0,0.000269,2]
[381050887,1755975032800,-500.0,0.00027421,5]
[381050889,1755975032809,-1000.0,0.00027421,5]
[381050891,1755975032819,-1000.0,0.00027421,5]
[381050893,1755975032828,-1000.0,0.00027421,5]
[381050895,1755975032838,-229.11282378,0.00027421,5]
[381050896,1755975032847,-840.87911633,0.00027421,5]
[381050899,1755975032858,-159.12088367,0.00027421,5]
[381050900,1755975032867,-386.37513093,0.00027532,2]
[381050903,1755975032878,-113.62486907,0.00027532,2]
[381050905,1755975032888,-500.0,0.00027532,2]
[381050907,1755975032897,-102.79768108,0.00027532,2]
[381050984,1755975038514,-397.20231892,0.00027532,2]
[381050985,1755975038525,-500.0,0.00027532,2]
[381050986,1755975038535,-500.0,0.00027532,2]
[381050987,1755975038544,-127.98771019,0.00027532,2]
[381050988,1755975038555,-372.01228981,0.00027532,2]
[381050989,1755975038566,-500.0,0.00027532,2]
[381050990,1755975038576,-325.19096469,0.00027532,2]
[381050991,1755975038587,-645.22130825,0.00027532,2]
[381050992,1755975038597,-500.0,0.00027532,2]
[381050993,1755975038606,-449.57314882,0.00027532,2]
[381050994,1755975038622,-50.42685118,0.00027532,2]
[381050995,1755975038632,-500.0,0.00027533,5]
[381050996,1755975038643,-732.08524212,0.00027533,2]
[381050997,1755975038653,-3371.7,0.00027533,2]
[381050998,1755975038664,-1761.02883035,0.00027533,2]
[381050999,1755975038676,-13057.64961959,0.00027533,2]
[381051000,1755975038688,-12500.81965462,0.00027533,2]
[381051001,1755975038699,-4099.55267829,0.00027533,2]
[381051002,1755975038710,-14477.16397503,0.00027533,2]
[381051003,1755975038720,-500.0,0.00027573,5]
[381051004,1755975038734,-500.0,0.00027573,5]
[381051005,1755975038744,-1500.0,0.00027968,5]
[381051006,1755975038754,-1500.0,0.00027968,5]
[381051007,1755975038764,-500.0,0.00027973,5]
[381051008,1755975038775,-187.01279824,0.00027973,5]
[381051009,1755975038783,-309.86300587,0.00027973,5]
[381051010,1755975038794,-500.0,0.00027973,5]
[381051011,1755975038804,-1000.0,0.00028121,5]
[381051012,1755975038813,-500.0,0.00028121,5]
[381051013,1755975038823,-1036.3278538,0.00028516,5]
[381051014,1755975038832,-586.13444669,0.00028521,5]
[381051015,1755975038841,-260.87395675,0.00028533,10]
[381051016,1755975038850,-1500.0,0.00028668,5]
[381051017,1755975038860,-90.90916172,0.00028789,2]
[381051018,1755975038873,-1726.96634121,0.00028789,2]
[381051019,1755975038882,-13408.78209309,0.00028789,3]
[381051020,1755975038893,-500.0,0.00028859,3]
[381051021,1755975038903,-162.33,0.00028859,3]
[381051022,1755975038913,-487.0,0.00028859,3]
[381051023,1755975038923,-254.16193798,0.00028872,2]
[381051024,1755975038934,-500.0,0.00028872,2]
[381051025,1755975038944,-500.0,0.00028872,2]
[381051026,1755975038954,-500.0,0.00028872,2]
[381051027,1755975038964,-500.0,0.00028872,2]
[381051028,1755975038974,-434.4409436,0.00028872,2]
[381051029,1755975038983,-500.0,0.00028873,5]
[381051030,1755975038993,-500.0,0.00028873,2]
[381051031,1755975039002,-500.0,0.00028873,5]
[381051032,1755975039012,-577.34170206,0.00028873,5]
[381051033,1755975039021,-500.0,0.00028873,5]
[381051034,1755975039031,-500.0,0.00028873,5]
[381051035,1755975039040,-527.88255609,0.00028873,5]
[381051036,1755975039050,-500.0,0.00028873,5]
[381051037,1755975039060,-500.0,0.00028873,5]
[381051038,1755975039069,-500.0,0.00028873,5]
[381051039,1755975039079,-500.0,0.00028873,5]
[381051040,1755975039087,-500.0,0.00028873,5]
[381051041,1755975039097,-500.0,0.00028873,5]
[381051042,1755975039106,-500.0,0.00028873,5]
[381051043,1755975039115,-500.0,0.00028873,5]
[381051044,1755975039125,-500.0,0.00028873,5]
[381051045,1755975039134,-500.0,0.00028873,5]
[381051046,1755975039143,-500.0,0.00028873,5]
[381051047,1755975039155,-500.0,0.00028873,5]
[381051048,1755975039165,-500.0,0.00028873,5]
[381051049,1755975039174,-500.0,0.00028873,5]
[381051050,1755975039183,-500.0,0.00028873,5]
[381051051,1755975039193,-501.00116031,0.00028873,5]
[381051052,1755975039202,-500.0,0.00028873,5]
[381051053,1755975039211,-500.0,0.00028873,5]
[381051054,1755975039220,-500.0,0.00028873,5]
[381051055,1755975039229,-512.20953494,0.00028878,2]
[381051056,1755975039239,-694.75,0.00028879,2]
[381051057,1755975039249,-260792.456671,0.00028879,2]
[381051058,1755975039258,-370000.0,0.00028889,2]
[381051059,1755975039267,-2592.45444717,0.00028889,2]
[381051060,1755975039277,-6484.05053103,0.00028889,2]
[381051061,1755975039287,-447.75,0.000289,7]
[381051062,1755975039296,-1227.72,0.000289,7]
[381051063,1755975039305,-14277.18,0.000289,2]
[381051064,1755975039314,-302.45563732,0.0002892,22]
[381051065,1755975039323,-500.0,0.00028973,5]
[381051066,1755975039333,-500.0,0.00028973,5]
[381051067,1755975039342,-44359.69299429,0.0002899,2]
[381051068,1755975039351,-300.0,0.00029084,2]
[381051069,1755975039360,-164.628817,0.0002911,2]
[381051070,1755975039369,-500.0,0.00029133,3]
[381051071,1755975039378,-661.44000215,0.00029343,2]
[381051072,1755975039387,-339.31001328,0.00029343,2]
[381051073,1755975039396,-500.0,0.00029407,3]
[381051074,1755975039488,-1000.0,0.00029421,2]
[381051075,1755975039502,-500.0,0.00029421,5]
[381051076,1755975039511,-1000.0,0.00029421,5]
[381051077,1755975039521,-1000.0,0.00029421,5]
[381051078,1755975039531,-1000.0,0.00029421,5]
[381051079,1755975039540,-500.0,0.00029421,5]
[381051080,1755975039550,-1000.0,0.00029421,5]
[381051081,1755975039559,-1000.0,0.00029421,5]
[381051082,1755975039568,-500.68861223,0.00029421,5]
[381051083,1755975039578,-1000.0,0.00029421,5]
[381051084,1755975039587,-1000.0,0.00029421,5]
[381051085,1755975039597,-356.87938461,0.00029421,5]
[381051086,1755975039606,-1000.0,0.00029421,5]
[381051087,1755975039615,-1145.94557468,0.00029521,5]
[381051088,1755975039624,-1000.0,0.00029521,5]
[381051089,1755975039634,-1357.24005313,0.000296,2]
[381051090,1755975039645,-500.0,0.00029681,3]
[381051091,1755975039655,-260.0,0.00029722,2]
[381051092,1755975039663,-515.53125299,0.00029955,3]
[381051093,1755975039673,-1500.0,0.00029968,2]
[381051094,1755975039682,-500.0,0.00029968,5]
[381051095,1755975039691,-1500.0,0.00029968,5]
[381051096,1755975039701,-1500.0,0.00029968,5]
[381051097,1755975039710,-1000.0,0.00029968,5]
[381051098,1755975039719,-500.0,0.00029968,5]